[Event "Fagernes Open 2021"]
[Site "Fagernes"]
[Date "2021.10.11"]
[Round "2.3"]
[White "Galinsky, Misha"]
[Black "Johannessen, Heine N"]
[Result "1-0"]
[ECO "A36"]
[WhiteElo "1756"]
[BlackElo "1930"]
[Annotator "ChessBase"]
[PlyCount "103"]
[EventDate "2021.10.10"]
[EventCountry "NOR"]
[SourceTitle "playchess.com"]
[Source "ChessBase"]
[SourceQuality "1"]
[TimeControl "40/5400+30:1800+30"]

1. c4 {[%emt 0:00:00]} c5 {[%emt 0:00:00]} 2. g3 {[%emt 0:00:00]} g6 {[%emt 0:00:00]} 3. Bg2 {[%emt 0:00:00]} Bg7 {[%emt 0:00:00]} 4. e3 {[%emt 0:00:00]} Nc6 {[%emt 0:00:00]} 5. Ne2 {[%emt 0:00:00]} e5 {[%emt 0:01:42]} 6. O-O {[%emt 0:00:00]} Nge7 {[%emt 0:01:32]} 7. Nbc3 {[%emt 0:00:00]} O-O {[%emt 0:01:24]} 8. a3 {[%emt 0:00:00]} d6 {[%emt 0:03:56]} 9. Rb1 {[%emt 0:01:55]} a5 {[%emt 0:01:35]} 10. Qc2 {[%emt 0:02:12]} Bf5 {[%emt 0:09:53]} 11. d3 {[%emt 0:02:22]} Qd7 {[%emt 0:01:31]} 12. Nd5 {[%emt 0:04:33]} Nxd5 {[%emt 0:06:37]} 13. Bxd5 {[%emt 0:00:36]} Rae8 {[%emt 0:04:25]} 14. Nc3 {[%emt 0:07:46]} h5 {[%emt 0:03:27]} 15. Bg2 {[%emt 0:03:01]} h4 {[%emt 0:02:34]} 16. Nd5 {[%emt 0:02:39]} Bh3 {[%emt 0:04:35]} 17. b4 {[%emt 0:03:11]} axb4 {[%emt 0:02:33]} 18. axb4 {[%emt 0:00:28]} e4 {[%emt 0:04:03]} 19. dxe4 {[%emt 0:02:55]} Ne5 {[%emt 0:06:19]} 20. Bb2 {[%emt 0:14:01]} Bxg2 {[%emt 0:11:47]} 21. Kxg2 {[%emt 0:00:07]} h3+ {[%emt 0:04:01]} 22. Kh1 {[%emt 0:02:39]} Qg4 {[%emt 0:02:52]} 23. f4 {[%emt 0:00:52]} Nd7 {[%emt 0:02:09]} 24. Bxg7 {[%emt 0:00:38]} Kxg7 {[%emt 0:00:08]} 25. Nc7 {[%emt 0:12:22]} Re7 {[%emt 0:03:22]} 26. Nd5 {[%emt 0:00:08]} Ree8 {[%emt 0:01:42]} 27. Nc7 {[%emt 0:00:07]} Rc8 {[%emt 0:00:42]} 28. Nb5 {[%emt 0:00:18]} Rc6 {[%emt 0:02:25]} 29. Rbd1 {[%emt 0:00:43]} cxb4 {[%emt 0:03:28]} 30. Rxd6 {[%emt 0:01:24]} Rxd6 {[%emt 0:00:56]} 31. Nxd6 {[%emt 0:00:06]} Nc5 {[%emt 0:00:21]} 32. f5 {[%emt 0:12:04]} Rd8 {[%emt 0:02:37]} 33. Qb2+ {[%emt 0:04:48]} f6 {[%emt 0:00:54]} 34. e5 {[%emt 0:01:18]} Nd3 {[%emt 0:02:45]} 35. exf6+ {[%emt 0:07:45]} Kf8 {[%emt 0:00:39]} 36. Qa2 {[%emt 0:00:23]} gxf5 {[%emt 0:06:20]} 37. Nxf5 {[%emt 0:04:21]} Qe4+ {[%emt 0:01:30]} 38. Kg1 {[%emt 0:00:03]} Ne5 {[%emt 0:01:34]} 39. Qe2 {[%emt 0:06:59]} b3 {[%emt 0:01:17]} 40. Nh4 {[%emt 0:05:59]} Nxc4 {[%emt 0:02:09]} 41. Qh5 {[%emt 0:31:37]} Qxe3+ {[%emt 0:00:00]} 42. Kh1 {[%emt 0:00:00]} Qe4+ {[%emt 0:00:00]} 43. Nf3 {[%emt 0:00:00]} Rd7 {[%emt 0:01:04]} 44. Qc5+ {[%emt 0:00:00]} Kf7 {[%emt 0:02:27]} 45. Qxc4+ {[%emt 0:00:00]} Qxc4 {[%emt 0:00:15]} 46. Ne5+ {[%emt 0:00:00]} Ke6 {[%emt 0:00:17]} 47. Nxc4 {[%emt 0:00:00]} Rf7 {[%emt 0:01:09]} 48. Na5 {[%emt 0:00:00]} b2 {[%emt 0:00:12]} 49. Nc4 {[%emt 0:00:00]} b5 {[%emt 0:00:39]} 50. Nxb2 {[%emt 0:00:00]} b4 {[%emt 0:00:09]} 51. Nd3 {[%emt 0:00:00]} b3 {[%emt 0:00:06]} 52. Nc5+ {[%emt 0:00:00]} 1-0

[Event "Fagernes Open 2021"]
[Site "Fagernes"]
[Date "2021.10.11"]
[Round "2.4"]
[White "Unhjem, Bjorn Robert Lovoll"]
[Black "Erikstad, Olav Aage"]
[Result "1-0"]
[ECO "B15"]
[WhiteElo "1924"]
[BlackElo "1761"]
[Annotator "NA"]
[PlyCount "77"]
[EventDate "2021.10.10"]
[EventCountry "NOR"]
[SourceTitle "playchess.com"]
[Source "ChessBase"]
[SourceQuality "1"]
[TimeControl "40/5400+30:1800+30"]

1. d4 {[%emt 0:00:00]} c6 {[%emt 0:00:00]} 2. e4 {[%emt 0:00:00]} d5 {[%emt 0:00:00]} 3. Nc3 {[%emt 0:00:00]} dxe4 {[%emt 0:00:00]} 4. Nxe4 {[%emt 0:00:00]} Nf6 {[%emt 0:00:00]} 5. Nc3 {[%emt 0:00:00]} Bg4 {[%emt 0:00:00]} 6. f3 {[%emt 0:00:00]} Bh5 {[%emt 0:00:00]} 7. Nge2 {[%emt 0:00:10]} e6 {[%emt 0:00:00]} 8. Nf4 {[%emt 0:01:07]} Bg6 {[%emt 0:00:00]} 9. h4 {[%emt 0:00:22]} Nh5 {[%emt 0:00:00]} 10. Nxh5 {[%emt 0:00:41]} Bxh5 {[%emt 0:00:00]} 11. g4 {[%emt 0:00:40]} Be7 {[%emt 0:00:00]} 12. gxh5 {[%emt 0:00:49]} Bxh4+ {[%emt 0:00:00]} 13. Ke2 {[%emt 0:00:00]} Nd7 {[%emt 0:04:46]} 14. Ne4 {[%emt 0:01:32]} Be7 {[%emt 0:01:57]} 15. Bf4 {[%emt 0:01:07]} Nb6 {[%emt 0:02:22]} 16. Be5 {[%emt 0:03:34]} f6 {[%emt 0:02:35]} 17. Bf4 {[%emt 0:02:09]} Nd5 {[%emt 0:01:27]} 18. Bg3 {[%emt 0:01:16]} Qb6 {[%emt 0:01:28]} 19. c4 {[%emt 0:06:25]} Qxb2+ {[%emt 0:01:41]} 20. Qd2 {[%emt 0:00:27]} Qxa1 {[%emt 0:00:25]} 21. Bg2 {[%emt 0:00:09]} Qxh1 {[%emt 0:01:13]} 22. Bxh1 {[%emt 0:00:06]} Nb6 {[%emt 0:00:39]} 23. Qc2 {[%emt 0:01:20]} O-O-O {[%emt 0:00:17]} 24. Bf2 {[%emt 0:01:26]} f5 {[%emt 0:03:35]} 25. Nd2 {[%emt 0:01:27]} Bf6 {[%emt 0:01:04]} 26. Nb3 {[%emt 0:04:21]} g5 {[%emt 0:04:06]} 27. f4 {[%emt 0:01:01]} g4 {[%emt 0:05:43]} 28. d5 {[%emt 0:00:51]} cxd5 {[%emt 0:03:47]} 29. cxd5+ {[%emt 0:02:16]} Kb8 {[%emt 0:00:45]} 30. dxe6 {[%emt 0:00:23]} Na4 {[%emt 0:05:01]} 31. Qxf5 {[%emt 0:05:44]} Nc3+ {[%emt 0:00:26]} 32. Kf1 {[%emt 0:00:10]} g3 {[%emt 0:04:45]} 33. Qxf6 {[%emt 0:00:57]} gxf2 {[%emt 0:02:15]} 34. Qe5+ {[%emt 0:00:08]} Ka8 {[%emt 0:00:42]} 35. Qxc3 {[%emt 0:00:07]} Rd1+ {[%emt 0:01:30]} 36. Kxf2 {[%emt 0:00:08]} Rg8 {[%emt 0:00:32]} 37. Bxb7+ {[%emt 0:00:27]} Kb8 {[%emt 0:00:41]} 38. Bf3 {[%emt 0:00:16]} Rgg1 {[%emt 0:00:21]} 39. Bxd1 {[%emt 0:01:11]} 1-0

[Event "Fagernes Open 2021"]
[Site "Fagernes"]
[Date "2021.10.11"]
[Round "2.5"]
[White "Dahl, Torbjorn"]
[Black "Orban, Tiberiu"]
[Result "1-0"]
[ECO "C47"]
[WhiteElo "1876"]
[BlackElo "1731"]
[Annotator "NA"]
[PlyCount "87"]
[EventDate "2021.10.10"]
[EventCountry "NOR"]
[SourceTitle "playchess.com"]
[Source "ChessBase"]
[SourceQuality "1"]
[TimeControl "40/5400+30:1800+30"]

1. e4 {[%emt 0:00:00]} e5 {[%emt 0:00:00]} 2. Nf3 {[%emt 0:00:00]} Nc6 {[%emt 0:00:00]} 3. Nc3 {[%emt 0:00:00]} Nf6 {[%emt 0:00:00]} 4. d4 {[%emt 0:00:00]} exd4 {[%emt 0:00:00]} 5. Nd5 {[%emt 0:00:00]} d6 {[%emt 0:00:00]} 6. Nxd4 {[%emt 0:01:46]} Bd7 {[%emt 0:01:19]} 7. Bc4 {[%emt 0:07:25]} Ne5 {[%emt 0:02:20]} 8. Bb3 {[%emt 0:01:02]} c5 {[%emt 0:01:59]} 9. Nf3 {[%emt 0:08:13]} c4 {[%emt 0:03:05]} 10. Nxe5 {[%emt 0:00:54]} cxb3 {[%emt 0:00:14]} 11. Nxf6+ {[%emt 0:04:27]} gxf6 {[%emt 0:02:11]} 12. Nxd7 {[%emt 0:00:47]} bxc2 {[%emt 0:01:17]} 13. Nxf6+ {[%emt 0:00:55]} Qxf6 {[%emt 0:00:22]} 14. Qxc2 {[%emt 0:01:53]} Rg8 {[%emt 0:01:27]} 15. Qa4+ {[%emt 0:06:41]} Kd8 {[%emt 0:00:20]} 16. O-O {[%emt 0:03:16]} Bg7 {[%emt 0:02:13]} 17. Qa5+ {[%emt 0:03:20]} Kd7 {[%emt 0:02:59]} 18. Qb5+ {[%emt 0:00:29]} Kc8 {[%emt 0:01:40]} 19. Bg5 {[%emt 0:04:12]} Qe6 {[%emt 0:02:17]} 20. Rac1+ {[%emt 0:04:51]} Kb8 {[%emt 0:00:02]} 21. Bf4 {[%emt 0:08:56]} Be5 {[%emt 0:01:37]} 22. Bxe5 {[%emt 0:03:37]} dxe5 {[%emt 0:00:12]} 23. Rc3 {[%emt 0:02:04]} a6 {[%emt 0:01:22]} 24. Qd3 {[%emt 0:05:31]} Ka7 {[%emt 0:04:31]} 25. Qe3+ {[%emt 0:01:29]} Qb6 {[%emt 0:01:23]} 26. Qxb6+ {[%emt 0:03:51]} Kxb6 {[%emt 0:00:04]} 27. Rfc1 {[%emt 0:00:52]} Rg7 {[%emt 0:01:22]} 28. Rb3+ {[%emt 0:00:36]} Ka7 {[%emt 0:00:14]} 29. Rc7 {[%emt 0:00:46]} Rb8 {[%emt 0:00:09]} 30. Re7 {[%emt 0:00:26]} Rg6 {[%emt 0:02:03]} 31. Rxf7 {[%emt 0:00:26]} Rd6 {[%emt 0:00:11]} 32. Kf1 {[%emt 0:01:21]} Ka8 {[%emt 0:06:03]} 33. Rxh7 {[%emt 0:00:20]} Rd2 {[%emt 0:02:02]} 34. Ke1 {[%emt 0:03:33]} Rc2 {[%emt 0:00:59]} 35. Rg7 {[%emt 0:03:01]} b5 {[%emt 0:04:06]} 36. h4 {[%emt 0:01:55]} Rd8 {[%emt 0:01:29]} 37. Rc3 {[%emt 0:04:17]} Rxb2 {[%emt 0:00:31]} 38. Rcc7 {[%emt 0:00:23]} Rxa2 {[%emt 0:01:25]} 39. h5 {[%emt 0:00:45]} b4 {[%emt 0:05:40]} 40. h6 {[%emt 0:03:01]} b3 {[%emt 0:00:06]} 41. Ra7+ {[%emt 0:31:46]} Kb8 {[%emt 0:30:09]} 42. Rab7+ {[%emt 0:00:17]} Ka8 {[%emt 0:00:10]} 43. Rxb3 {[%emt 0:02:02]} Rdd2 {[%emt 0:00:15]} 44. h7 {[%emt 0:00:52]} 1-0

[Event "Fagernes Open 2021"]
[Site "Fagernes"]
[Date "2021.10.11"]
[Round "2.6"]
[White "Wibe, Per H."]
[Black "Edvardsen, Ragnar"]
[Result "0-1"]
[ECO "D02"]
[WhiteElo "1755"]
[BlackElo "1865"]
[Annotator "NA"]
[PlyCount "74"]
[EventDate "2021.10.10"]
[EventCountry "NOR"]
[SourceTitle "playchess.com"]
[Source "ChessBase"]
[SourceQuality "1"]
[TimeControl "40/5400+30:1800+30"]

1. d4 {[%emt 0:00:00]} Nf6 {[%emt 0:00:00]} 2. Nf3 {[%emt 0:00:00]} g6 {[%emt 0:00:00]} 3. Bf4 {[%emt 0:00:00]} Bg7 {[%emt 0:00:00]} 4. Nbd2 {[%emt 0:00:00]} d5 {[%emt 0:00:00]} 5. e3 {[%emt 0:00:00]} O-O {[%emt 0:00:00]} 6. h3 {[%emt 0:00:00]} c5 {[%emt 0:00:00]} 7. c3 {[%emt 0:00:00]} b6 {[%emt 0:02:26]} 8. Be2 {[%emt 0:00:05]} Bb7 {[%emt 0:00:41]} 9. Qc2 {[%emt 0:01:35]} Nbd7 {[%emt 0:01:32]} 10. Ne5 {[%emt 0:02:43]} Rc8 {[%emt 0:09:08]} 11. Rd1 {[%emt 0:02:24]} cxd4 {[%emt 0:15:11]} 12. exd4 {[%emt 0:00:44]} Nxe5 {[%emt 0:01:12]} 13. Bxe5 {[%emt 0:01:09]} Nd7 {[%emt 0:01:24]} 14. Bxg7 {[%emt 0:01:06]} Kxg7 {[%emt 0:00:11]} 15. Nf3 {[%emt 0:06:31]} f6 {[%emt 0:02:00]} 16. O-O {[%emt 0:01:30]} e5 {[%emt 0:01:34]} 17. Qd2 {[%emt 0:24:21]} e4 {[%emt 0:04:33]} 18. Nh2 {[%emt 0:07:38]} f5 {[%emt 0:00:48]} 19. f4 {[%emt 0:02:41]} Qe7 {[%emt 0:15:12]} 20. Qe3 {[%emt 0:02:11]} Rf7 {[%emt 0:01:53]} 21. g4 {[%emt 0:04:56]} fxg4 {[%emt 0:05:19]} 22. Nxg4 {[%emt 0:05:50]} Rcf8 {[%emt 0:05:37]} 23. Rf2 {[%emt 0:09:37]} h5 {[%emt 0:03:51]} 24. Nh2 {[%emt 0:01:55]} Rxf4 {[%emt 0:04:00]} 25. Rg2 {[%emt 0:16:36]} Qh4 {[%emt 0:02:24]} 26. Kh1 {[%emt 0:01:20]} Rf2 {[%emt 0:05:40]} 27. Rdg1 {[%emt 0:02:06]} Rxg2 {[%emt 0:00:39]} 28. Rxg2 {[%emt 0:00:06]} Kh7 {[%emt 0:00:44]} 29. Rg3 {[%emt 0:02:04]} Qf4 {[%emt 0:01:29]} 30. Qg1 {[%emt 0:00:42]} Qf5 {[%emt 0:01:06]} 31. Rg5 {[%emt 0:00:28]} Qf7 {[%emt 0:02:57]} 32. Nf1 {[%emt 0:01:05]} Rg8 {[%emt 0:07:22]} 33. Ne3 {[%emt 0:02:29]} Nf8 {[%emt 0:01:08]} 34. Qd1 {[%emt 0:00:55]} Qf4 {[%emt 0:02:34]} 35. Re5 {[%emt 0:00:11]} Qxe3 {[%emt 0:00:30]} 36. Bxh5 {[%emt 0:01:13]} Qxh3+ {[%emt 0:00:18]} 37. Kg1 {[%emt 0:00:24]} gxh5+ {[%emt 0:00:18]} 0-1

[Event "Fagernes Open 2021"]
[Site "Fagernes"]
[Date "2021.10.11"]
[Round "2.7"]
[White "Kreken, Eivind Grunt"]
[Black "Stromhaug, Kristoffer Wang"]
[Result "1-0"]
[ECO "D44"]
[WhiteElo "1838"]
[BlackElo "1718"]
[Annotator "NA"]
[PlyCount "43"]
[EventDate "2021.10.10"]
[EventCountry "NOR"]
[SourceTitle "playchess.com"]
[Source "ChessBase"]
[SourceQuality "1"]
[TimeControl "40/5400+30:1800+30"]

1. d4 {[%emt 0:00:00]} d5 {[%emt 0:00:00]} 2. c4 {[%emt 0:00:00]} c6 {[%emt 0:00:00]} 3. Nf3 {[%emt 0:00:00]} Nf6 {[%emt 0:00:00]} 4. Nc3 {[%emt 0:00:00]} e6 {[%emt 0:03:11]} 5. Bg5 {[%emt 0:00:00]} dxc4 {[%emt 0:07:43]} 6. e4 {[%emt 0:00:00]} Be7 {[%emt 0:02:26]} 7. Bxc4 {[%emt 0:05:12]} Nbd7 {[%emt 0:03:51]} 8. O-O {[%emt 0:01:42]} h6 {[%emt 0:03:00]} 9. Bf4 {[%emt 0:14:47]} O-O {[%emt 0:01:38]} 10. Qe2 {[%emt 0:06:14]} a6 {[%emt 0:10:51]} 11. a4 {[%emt 0:00:47]} b6 {[%emt 0:14:19]} 12. Bd3 {[%emt 0:06:39]} c5 {[%emt 0:15:19]} 13. e5 {[%emt 0:06:04]} Nd5 {[%emt 0:06:40]} 14. Nxd5 {[%emt 0:03:11]} exd5 {[%emt 0:00:32]} 15. e6 {[%emt 0:00:50]} fxe6 {[%emt 0:09:36]} 16. Qxe6+ {[%emt 0:01:10]} Kh8 {[%emt 0:05:57]} 17. Qg6 {[%emt 0:05:14]} Nf6 {[%emt 0:00:00]} 18. Be5 {[%emt 0:01:51]} Qe8 {[%emt 0:00:26]} 19. Nh4 {[%emt 0:00:29]} Qf7 {[%emt 0:03:55]} 20. Bxf6 {[%emt 0:00:56]} gxf6 {[%emt 0:00:44]} 21. Qxh6+ {[%emt 0:00:13]} Kg8 {[%emt 0:00:21]} 22. Ng6 {[%emt 0:00:22]} 1-0

[Event "Fagernes Open 2021"]
[Site "Fagernes"]
[Date "2021.10.11"]
[Round "2.8"]
[White "Rynning, Rune Kleiven"]
[Black "Pedersen, Max Moe"]
[Result "1/2-1/2"]
[ECO "B67"]
[WhiteElo "1721"]
[BlackElo "1837"]
[Annotator "NA"]
[PlyCount "119"]
[EventDate "2021.10.10"]
[EventCountry "NOR"]
[SourceTitle "playchess.com"]
[Source "ChessBase"]
[SourceQuality "1"]
[TimeControl "40/5400+30:1800+30"]

1. e4 {[%emt 0:00:00]} c5 {[%emt 0:00:00]} 2. Nf3 {[%emt 0:00:00]} d6 {[%emt 0:00:00]} 3. d4 {[%emt 0:00:00]} cxd4 {[%emt 0:00:00]} 4. Nxd4 {[%emt 0:00:00]} Nf6 {[%emt 0:00:00]} 5. Nc3 {[%emt 0:00:00]} Nc6 {[%emt 0:00:00]} 6. Bg5 {[%emt 0:00:00]} e6 {[%emt 0:00:00]} 7. Qd2 {[%emt 0:00:00]} a6 {[%emt 0:00:00]} 8. O-O-O {[%emt 0:00:00]} Bd7 {[%emt 0:00:00] 8...Bd7 scores better than 8...h6.} 9. f3 {[%emt 0:00:00]} Nxd4 {[%emt 0:00:00]} 10. Qxd4 {[%emt 0:00:00]} Be7 {[%emt 0:00:00]} 11. g4 {[%emt 0:03:50]} h5 {[%emt 0:00:00]} 12. gxh5 {[%emt 0:02:33]} Nxh5 {[%emt 0:00:00]} 13. Bxe7 {[%emt 0:02:15]} Qxe7 {[%emt 0:00:00]} 14. Rg1 {[%emt 0:15:38]} Bc6 {[%emt 0:04:18]} 15. Qxd6 {[%emt 0:00:59]} Qxd6 {[%emt 0:02:09]} 16. Rd3 {[%emt 0:00:08]} Qd5 17. Rxd5 {[%emt 0:00:30]} Ke7 {[%emt 0:02:30]} 18. Rd2 {[%emt 0:01:17]} Rh6 {[%emt 0:05:47] [#]} 19. Rg4 $146 {[%emt 0:08:35]} ({Predecessor:} 19. Kd1 g6 20. Ke2 Nf4+ 21. Ke3 e5 22. h3 Rah8 23. Rh2 Rh5 24. Rgh1 Rh4 25. Kf2 f5 26. Kg3 {½-½ (41) Seo,J (2471)-Carlsson,L (2396) Uppsala 2021}) 19... g6 {[%emt 0:08:09]} 20. Rh4 {[%emt 0:08:58]} g5 {[%emt 0:03:34]} 21. Rg4 {[%emt 0:00:20]} f6 {[%emt 0:02:19]} 22. h4 {[%emt 0:13:18]} Rg8 {[%emt 0:04:43]} 23. hxg5 {[%emt 0:01:21]} fxg5 {[%emt 0:06:07]} 24. Rdg2 {[%emt 0:03:57]} Nf4 {[%emt 0:02:34]} 25. Rg1 {[%emt 0:05:16]} Rh2 {[%emt 0:06:16]} 26. Bd3 {[%emt 0:04:34]} Rd8 {[%emt 0:04:15]} 27. Rd1 {[%emt 0:03:24]} Kf6 {[%emt 0:03:08]} 28. e5+ {[%emt 0:04:29]} Kxe5 {[%emt 0:14:00]} 29. Rxg5+ {[%emt 0:00:03]} Kf6 {[%emt 0:00:11]} 30. Rg3 {[%emt 0:01:47]} Nxd3+ {[%emt 0:07:42]} 31. Rxd3 {[%emt 0:00:26]} Rxd3 {[%emt 0:00:28]} 32. cxd3 {[%emt 0:00:03]} Kf5 {[%emt 0:01:01]} 33. Ne4 {[%emt 0:04:30]} Kf4 {[%emt 0:04:34]} 34. Rg6 {[%emt 0:00:39]} Bd5 {[%emt 0:01:54]} 35. Nc3 {[%emt 0:05:39]} Ke3 {[%emt 0:03:27]} 36. Nxd5+ {[%emt 0:01:42]} exd5 {[%emt 0:00:12]} 37. Rb6 {[%emt 0:03:04]} Kxd3 {[%emt 0:01:19]} 38. Rb3+ {[%emt 0:00:37]} Kc4 {[%emt 0:00:23]} 39. Rxb7 {[%emt 0:01:55]} d4 {[%emt 0:02:36]} 40. Re7 {[%emt 0:06:30]} Kd3 {[%emt 0:02:37]} 41. Re1 {[%emt 0:31:02]} Rc2+ {[%emt 0:30:42]} 42. Kb1 {[%emt 0:00:00]} Rf2 {[%emt 0:00:00]} 43. Rd1+ {[%emt 0:00:00]} Ke3 {[%emt 0:00:00]} 44. Kc1 {[%emt 0:00:00]} d3 {[%emt 0:00:00]} 45. Re1+ {[%emt 0:00:00]} Kxf3 {[%emt 0:00:00]} 46. Re6 {[%emt 0:00:00]} Rc2+ {[%emt 0:00:00]} 47. Kd1 {[%emt 0:00:00]} a5 {[%emt 0:00:00]} 48. Ra6 {[%emt 0:00:00]} Rxb2 {[%emt 0:00:00]} 49. Rxa5 {[%emt 0:00:00]} Ke3 {[%emt 0:00:00]} 50. Re5+ {[%emt 0:00:00]} Kd4 {[%emt 0:00:00]} 51. Ra5 {[%emt 0:00:00]} Rh2 $11 {[%emt 0:00:00]} 52. Ra8 {[%emt 0:00:00]} Kc3 {[%emt 0:00:00]} 53. Rc8+ {[%emt 0:00:00]} Kd4 {[%emt 0:00:00]} 54. a4 {[%emt 0:00:00]} Ra2 {[%emt 0:00:00]} 55. Ra8 {[%emt 0:00:00]} Kc3 {[%emt 0:00:00]} 56. Rc8+ {[%emt 0:00:00]} Kb4 {[%emt 0:00:00]} 57. Rd8 {[%emt 0:00:00]} Ra3 {[%emt 0:00:00]} 58. Kd2 {[%emt 0:00:00]} Kxa4 {[%emt 0:00:00]} 59. Rxd3 {[%emt 0:00:00]} Rxd3+ {[%emt 0:00:00]} 60. Kxd3 {[%emt 0:00:00]} 1/2-1/2

[Event "Fagernes Open 2021"]
[Site "Fagernes"]
[Date "2021.10.11"]
[Round "2.9"]
[White "Fredriksen, Jan Gunnar"]
[Black "Strand, Amund Pihl"]
[Result "0-1"]
[ECO "D40"]
[WhiteElo "1835"]
[BlackElo "1712"]
[Annotator "NA"]
[PlyCount "58"]
[EventDate "2021.10.10"]
[EventCountry "NOR"]
[SourceTitle "playchess.com"]
[Source "ChessBase"]
[SourceQuality "1"]
[TimeControl "40/5400+30:1800+30"]

1. Nf3 {[%emt 0:00:00]} d5 {[%emt 0:00:00]} 2. d4 {[%emt 0:00:00]} Nf6 {[%emt 0:00:00]} 3. c4 {[%emt 0:00:00]} e6 {[%emt 0:00:00]} 4. Nc3 {[%emt 0:00:00]} Be7 {[%emt 0:00:00]} 5. e3 {[%emt 0:00:00]} O-O {[%emt 0:00:00]} 6. Bd3 {[%emt 0:00:00]} dxc4 {[%emt 0:00:18]} 7. Bxc4 {[%emt 0:00:00]} c5 {[%emt 0:01:30]} 8. O-O {[%emt 0:00:00]} Nc6 {[%emt 0:10:12]} 9. dxc5 {[%emt 0:07:11]} Bxc5 {[%emt 0:00:23]} 10. a3 {[%emt 0:01:23]} Qe7 {[%emt 0:05:16]} 11. b4 {[%emt 0:01:02]} Bd6 {[%emt 0:00:41]} 12. Bb2 {[%emt 0:03:09]} Rd8 {[%emt 0:05:23]} 13. Qb3 {[%emt 0:01:44]} a6 {[%emt 0:04:14]} 14. Qa2 {[%emt 0:06:14]} b5 {[%emt 0:03:16]} 15. Bb3 {[%emt 0:00:18]} Bb7 {[%emt 0:01:49]} 16. Ne2 {[%emt 0:03:33]} a5 {[%emt 0:10:52]} 17. Ned4 {[%emt 0:15:16]} Nxd4 {[%emt 0:06:33]} 18. Nxd4 {[%emt 0:01:06]} axb4 {[%emt 0:04:15]} 19. a4 {[%emt 0:18:15]} bxa4 {[%emt 0:06:55]} 20. Bxa4 {[%emt 0:00:23]} Bd5 {[%emt 0:06:18]} 21. Qb1 {[%emt 0:00:49]} Ne4 {[%emt 0:04:05]} 22. Nf3 {[%emt 0:20:03]} Ng5 {[%emt 0:04:14]} 23. Nd4 {[%emt 0:05:36]} Nh3+ {[%emt 0:03:00]} 24. Kh1 {[%emt 0:01:33]} Qh4 {[%emt 0:04:55]} 25. f4 {[%emt 0:03:34]} Nf2+ {[%emt 0:00:30]} 26. Kg1 {[%emt 0:00:30]} Ng4 {[%emt 0:00:30]} 27. h3 {[%emt 0:00:30]} Nxe3 {[%emt 0:00:30]} 28. Rf2 {[%emt 0:00:30]} Bxf4 {[%emt 0:00:30]} 29. Ne2 {[%emt 0:00:30]} Bg3 {[%emt 0:00:30]} 0-1

[Event "Fagernes Open 2021"]
[Site "Fagernes"]
[Date "2021.10.11"]
[Round "2.10"]
[White "Bach, Oliver"]
[Black "Fiskaaen, Martin Holten"]
[Result "0-1"]
[ECO "D24"]
[WhiteElo "1715"]
[BlackElo "1829"]
[Annotator "NA"]
[PlyCount "154"]
[EventDate "2021.10.10"]
[EventCountry "NOR"]
[SourceTitle "playchess.com"]
[Source "ChessBase"]
[SourceQuality "1"]
[TimeControl "40/5400+30:1800+30"]

1. d4 {[%emt 0:00:00]} Nf6 {[%emt 0:00:00]} 2. Nf3 {[%emt 0:00:00]} d5 {[%emt 0:00:00]} 3. c4 {[%emt 0:00:00]} e6 {[%emt 0:00:00]} 4. Bg5 {[%emt 0:00:00]} dxc4 {[%emt 0:00:00]} 5. Nc3 {[%emt 0:00:00]} h6 {[%emt 0:27:13]} 6. Bxf6 {[%emt 0:00:00]} Qxf6 {[%emt 0:00:28]} 7. e3 {[%emt 0:00:00]} Nd7 {[%emt 0:06:05]} 8. Bxc4 {[%emt 0:00:00]} g6 {[%emt 0:07:03]} 9. Nb5 {[%emt 0:01:31]} Bb4+ {[%emt 0:05:37]} 10. Nd2 {[%emt 0:03:21]} Qd8 {[%emt 0:02:20]} 11. O-O {[%emt 0:00:43]} a6 {[%emt 0:03:30]} 12. Nc3 {[%emt 0:00:28]} O-O {[%emt 0:01:31]} 13. Rc1 {[%emt 0:02:43]} Be7 {[%emt 0:03:32]} 14. Qc2 {[%emt 0:04:01]} Kg7 {[%emt 0:00:51]} 15. Bd3 {[%emt 0:05:25]} c5 {[%emt 0:03:50]} 16. d5 {[%emt 0:02:03]} Nf6 {[%emt 0:02:18]} 17. dxe6 {[%emt 0:01:28]} Bxe6 {[%emt 0:00:17]} 18. Bc4 {[%emt 0:04:07]} Bxc4 {[%emt 0:00:53]} 19. Nxc4 {[%emt 0:00:12]} b5 {[%emt 0:00:35]} 20. Nd2 {[%emt 0:01:17]} Qb6 {[%emt 0:05:56]} 21. Nce4 {[%emt 0:01:19]} Rac8 {[%emt 0:03:58]} 22. Nf3 {[%emt 0:05:02]} Qe6 {[%emt 0:05:11]} 23. Nxf6 {[%emt 0:01:16]} Bxf6 {[%emt 0:00:20]} 24. b3 {[%emt 0:01:16]} c4 {[%emt 0:04:45]} 25. bxc4 {[%emt 0:04:33]} Rxc4 {[%emt 0:01:13]} 26. Qb3 {[%emt 0:00:19]} Rfc8 {[%emt 0:06:14]} 27. Rxc4 {[%emt 0:00:20]} bxc4 {[%emt 0:02:42]} 28. Qc2 {[%emt 0:02:38]} c3 {[%emt 0:00:43]} 29. h3 {[%emt 0:07:49]} Qc4 {[%emt 0:01:30]} 30. Rb1 {[%emt 0:08:40]} Rc5 {[%emt 0:02:13]} 31. Rb3 {[%emt 0:05:10]} a5 {[%emt 0:01:40]} 32. e4 {[%emt 0:01:20]} a4 {[%emt 0:00:27]} 33. Rb1 {[%emt 0:02:40]} Rb5 {[%emt 0:01:04]} 34. Rxb5 {[%emt 0:02:36]} Qxb5 {[%emt 0:00:02]} 35. e5 {[%emt 0:07:58]} Bxe5 {[%emt 0:00:30]} 36. Nxe5 {[%emt 0:00:14]} Qxe5 {[%emt 0:00:01]} 37. Kf1 {[%emt 0:00:19]} Qd4 {[%emt 0:00:50]} 38. Ke2 {[%emt 0:00:49]} h5 {[%emt 0:00:37]} 39. Qd3 {[%emt 0:01:46]} Qe5+ {[%emt 0:01:46]} 40. Kd1 {[%emt 0:01:40]} Qc5 {[%emt 0:00:21]} 41. Qc2 {[%emt 0:33:41]} Qd5+ {[%emt 0:30:34]} 42. Ke2 {[%emt 0:00:11]} Qb5+ {[%emt 0:00:43]} 43. Ke3 {[%emt 0:02:31]} Qc4 {[%emt 0:00:53]} 44. f3 {[%emt 0:01:57]} h4 {[%emt 0:00:00]} 45. Qe2 {[%emt 0:00:00]} Qxe2+ {[%emt 0:00:00]} 46. Kxe2 {[%emt 0:00:00]} Kf6 {[%emt 0:00:00]} 47. Kd3 {[%emt 0:00:00]} Kf5 {[%emt 0:00:00]} 48. Kxc3 {[%emt 0:00:00]} Kf4 {[%emt 0:00:00]} 49. Kb4 {[%emt 0:00:00]} Kg3 {[%emt 0:00:00]} 50. Kxa4 {[%emt 0:00:00]} Kxg2 {[%emt 0:00:00]} 51. Kb5 {[%emt 0:00:00]} Kxh3 {[%emt 0:00:00]} 52. a4 {[%emt 0:00:00]} Kg3 {[%emt 0:00:00]} 53. a5 {[%emt 0:00:00]} h3 {[%emt 0:00:00]} 54. a6 {[%emt 0:00:00]} h2 {[%emt 0:00:00]} 55. a7 {[%emt 0:00:00]} h1=Q {[%emt 0:00:00]} 56. a8=Q {[%emt 0:00:00]} Qxf3 {[%emt 0:00:00]} 57. Qe8 {[%emt 0:00:00]} g5 {[%emt 0:00:00]} 58. Qe5+ {[%emt 0:00:00]} Qf4 {[%emt 0:00:00]} 59. Qe1+ {[%emt 0:00:00]} Kg4 {[%emt 0:00:00]} 60. Qd1+ {[%emt 0:00:00]} Kf5 {[%emt 0:00:00]} 61. Qd7+ {[%emt 0:00:00]} Kg6 {[%emt 0:00:00]} 62. Qe8 {[%emt 0:00:00]} Qf6 {[%emt 0:00:00]} 63. Qg8+ {[%emt 0:00:00]} Qg7 {[%emt 0:00:00]} 64. Qe8 {[%emt 0:00:00]} Kh6 {[%emt 0:00:00]} 65. Qe2 {[%emt 0:00:00]} f5 {[%emt 0:02:21]} 66. Qe6+ {[%emt 0:00:00]} Qg6 {[%emt 0:00:11]} 67. Qe7 {[%emt 0:00:00]} f4 {[%emt 0:02:07]} 68. Qf8+ {[%emt 0:00:00]} Kh5 {[%emt 0:00:31]} 69. Qh8+ {[%emt 0:00:00]} Kg4 {[%emt 0:00:11]} 70. Qh2 {[%emt 0:00:00]} Qd3+ {[%emt 0:00:13]} 71. Kc5 {[%emt 0:00:00]} Qg3 {[%emt 0:01:14]} 72. Qh6 {[%emt 0:00:00]} Qe3+ {[%emt 0:00:33]} 73. Kd5 {[%emt 0:00:00]} f3 {[%emt 0:00:45]} 74. Qf8 {[%emt 0:00:00]} f2 {[%emt 0:02:57]} 75. Qc8+ {[%emt 0:00:00]} Kg3 {[%emt 0:00:17]} 76. Qc7+ {[%emt 0:00:00]} Qf4 {[%emt 0:00:27]} 77. Qc3+ {[%emt 0:00:00]} Qf3+ {[%emt 0:00:08]} 0-1